fUSD/lending_fUSD_20260517
["ID","MTS","AMOUNT","RATE_DAILY","PERIOD"]
[422447912,1778959839000,-163.73,0.00015359,2]
[422447911,1778959839000,-170.06,0.00015135,2]
[422447907,1778959839000,-181.816587,0.00015068,2]
[422447908,1778959839000,-181.816587,0.00015068,2]
[422447906,1778959839000,-181.816587,0.00015068,2]
[422447913,1778959839000,-2000.0,0.000154,2]
[422447914,1778959839000,-321.60622561,0.00015424,2]
[422447901,1778959839000,-179.097696,0.00015068,2]
[422447948,1778959839000,-2091.18465572,0.00015659,2]
[422447891,1778959839000,-185.916905,0.00015,2]
[422447949,1778959839000,-3615.40882023,0.00015666,2]
[422447990,1778959839000,-156.719028,0.00016438,2]
[422447984,1778959839000,-151.0,0.00016438,2]
[422447983,1778959839000,-151.0,0.00016438,2]
[422447987,1778959839000,-151.0,0.00016438,2]
[422447986,1778959839000,-151.0,0.00016438,2]
[422447988,1778959839000,-151.0,0.00016438,2]
[422447991,1778959839000,-163.656556,0.00016438,2]
[422447994,1778959839000,-163.656556,0.00016438,2]
[422447993,1778959839000,-163.656556,0.00016438,2]
[422447996,1778959839000,-5619.87972295,0.000165,2]
[422447997,1778959839000,-228.26953422,0.000165,2]
[422447995,1778959839000,-163.656556,0.00016438,2]
[422447999,1778959839000,-166.66,0.00016671,2]
[422447985,1778959839000,-151.0,0.00016438,2]
[422447998,1778959839000,-5569.57057433,0.00016586,2]
[422448001,1778959839000,-167.41,0.0001678,2]
[422448002,1778959839000,-2000.0,0.0001701,2]
[422448003,1778959839000,-264.02,0.0001724,2]
[422448005,1778959839000,-1000.0,0.000174,2]
[422448004,1778959839000,-17937.30019472,0.00017305,2]
[422448006,1778959839000,-314.0,0.000174,2]
[422448008,1778959839000,-308.0,0.000174,2]
[422448009,1778959839000,-600.0,0.00017505,2]
[422448007,1778959839000,-884.0,0.000174,2]
[422448011,1778959839000,-600.0,0.00017505,2]
[422448013,1778959839000,-369.42,0.00017505,2]
[422448012,1778959839000,-600.0,0.00017505,2]
[422448010,1778959839000,-231.2,0.00017505,2]
[422448000,1778959839000,-217.3,0.00016767,2]
[422447982,1778959839000,-151.0,0.00016438,2]
[422448014,1778959839000,-369.42,0.00017505,2]
[422447981,1778959839000,-151.0,0.00016438,2]
[422447980,1778959839000,-151.0,0.00016438,2]
[422447951,1778959839000,-2091.18465572,0.00015671,2]
[422447952,1778959839000,-264.02,0.00015673,2]
[422447955,1778959839000,-4247.19461996,0.00015709,2]
[422447953,1778959839000,-150.0,0.00015675,2]
[422447954,1778959839000,-4247.19461996,0.00015678,2]
[422447957,1778959839000,-4247.19461996,0.00015719,2]
[422447959,1778959839000,-4247.19461996,0.00015728,2]
[422447958,1778959839000,-928.66598466,0.00015725,2]
[422447960,1778959839000,-928.66598466,0.00015742,2]
[422447963,1778959839000,-928.66598466,0.00015776,2]
[422447962,1778959839000,-3615.40882023,0.00015761,2]
[422447956,1778959839000,-4247.19461996,0.00015717,2]
[422447961,1778959839000,-3615.40882023,0.00015748,2]
[422447964,1778959839000,-4247.19461996,0.00015803,2]
[422447947,1778959839000,-3615.40882023,0.00015657,2]
[422447967,1778959839000,-300.0,0.00016,2]
[422447966,1778959839000,-150.0,0.000159,2]
[422447978,1778959839000,-151.0,0.00016438,2]
[422447975,1778959839000,-151.0,0.00016438,2]
[422447976,1778959839000,-151.0,0.00016438,2]
[422447970,1778959839000,-150.0,0.00016226,2]
[422447972,1778959839000,-158.79,0.0001642,2]
[422447977,1778959839000,-151.0,0.00016438,2]
[422447969,1778959839000,-809.34080542,0.0001611,15]
[422447965,1778959839000,-2640.83597419,0.00015821,2]
[422447973,1778959839000,-178.1,0.00016438,2]
[422447968,1778959839000,-17937.30019472,0.0001604,2]
[422447979,1778959839000,-151.0,0.00016438,2]
[422447971,1778959839000,-293.44,0.00016389,2]
[422447974,1778959839000,-151.0,0.00016438,2]
[422448045,1778959840000,-264.02,0.00018808,2]
[422448048,1778959840000,-178.8932757,0.00019,2]
[422448047,1778959840000,-5231.1380299,0.00019,2]
[422448049,1778959840000,-189.0,0.00019,2]
[422448050,1778959840000,-156.0,0.00019,2]
[422448052,1778959840000,-582.0,0.00019,2]
[422448053,1778959840000,-152.0,0.00019,2]
[422448054,1778959840000,-157.0,0.00019,2]
[422448055,1778959840000,-619.0,0.00019,2]
[422448056,1778959840000,-190.0,0.00019,2]
[422448051,1778959840000,-451.0,0.00019,2]
[422448062,1778959840000,-300.0,0.00019058,3]
[422448060,1778959840000,-152.0,0.00019,2]
[422448057,1778959840000,-151.0,0.00019,2]
[422448059,1778959840000,-326.0,0.00019,2]
[422448063,1778959840000,-300.0,0.00019058,3]
[422448064,1778959840000,-300.0,0.00019058,3]
[422448046,1778959840000,-4190.0,0.00019,2]
[422448061,1778959840000,-300.0,0.00019058,3]
[422448065,1778959840000,-300.0,0.00019058,3]
[422448068,1778959840000,-151.0,0.00019178,2]
[422448066,1778959840000,-158.79,0.00019157,2]
[422448067,1778959840000,-151.0,0.00019178,2]
[422448070,1778959840000,-151.0,0.00019178,2]
[422448069,1778959840000,-152.939565,0.00019178,2]
[422448058,1778959840000,-156.0,0.00019,2]
[422448044,1778959840000,-17937.30019472,0.00018571,2]
[422448037,1778959840000,-677.86,0.00018,2]
[422448042,1778959840000,-178.1,0.0001841,2]
[422448072,1778959840000,-151.0,0.00019178,2]
[422448016,1778959840000,-231.2,0.00017507,2]
[422448015,1778959840000,-369.42,0.00017505,2]
[422448017,1778959840000,-224.96,0.00017507,2]
[422448018,1778959840000,-224.95224261,0.00017507,2]
[422448019,1778959840000,-792.32411823,0.000177,2]
[422448021,1778959840000,-158.79,0.00017789,2]
[422448020,1778959840000,-813.5,0.00017746,2]
[422448022,1778959840000,-376.92551308,0.00017808,2]
[422448024,1778959840000,-950.4443337,0.00017953,2]
[422448025,1778959840000,-300.0,0.00017999,2]
[422448026,1778959840000,-340.44656242,0.00017999,2]
[422448043,1778959840000,-5569.57057433,0.00018507,2]
[422448023,1778959840000,-3600.0,0.000179,6]
[422448030,1778959840000,-151.0,0.00018,2]
[422448028,1778959840000,-350.0,0.00018,2]
[422448031,1778959840000,-151.0,0.00018,2]
[422448034,1778959840000,-169.176981,0.00018,2]
[422448032,1778959840000,-151.0,0.00018,2]
[422448033,1778959840000,-169.176981,0.00018,2]
[422448035,1778959840000,-169.176981,0.00018,2]
[422448036,1778959840000,-169.176981,0.00018,2]
[422448040,1778959840000,-293.44,0.00018028,2]
[422448038,1778959840000,-1000.0,0.00018016,2]
[422448039,1778959840000,-1000.0,0.00018016,2]
[422448041,1778959840000,-1800.32017362,0.000181,2]
[422448027,1778959840000,-110764.11664392,0.00018,2]
[422448029,1778959840000,-151.0,0.00018,2]
[422448071,1778959840000,-151.0,0.00019178,2]
[422448074,1778959840000,-151.0,0.00019178,2]
[422448104,1778959840000,-181.816587,0.00019837,2]
[422448106,1778959840000,-181.816587,0.00019837,2]
[422448108,1778959840000,-2989.40755395,0.000199,3]
[422448103,1778959840000,-181.816587,0.00019837,2]
[422448110,1778959840000,-151.0,0.00019912,2]
[422448105,1778959840000,-185.916905,0.00019837,2]
[422448111,1778959840000,-151.0,0.00019912,2]
[422448112,1778959840000,-151.0,0.00019912,2]
[422448113,1778959840000,-160.972558,0.00019912,2]
[422448115,1778959840000,-160.972558,0.00019912,2]
[422448114,1778959840000,-160.972558,0.00019912,2]
[422448121,1778959840000,-1018.546225,0.00019912,2]
[422448107,1778959840000,-185.916905,0.00019837,2]
[422448119,1778959840000,-156.055678,0.00019912,2]
[422448117,1778959840000,-156.055678,0.00019912,2]
[422448118,1778959840000,-156.055678,0.00019912,2]
[422448122,1778959840000,-1018.546225,0.00019912,2]
[422448124,1778959840000,-1018.546225,0.00019912,2]
[422448123,1778959840000,-1018.546225,0.00019912,2]
[422448126,1778959840000,-300.0,0.00019999,2]
[422448125,1778959840000,-151.0,0.00019997,2]
[422448128,1778959840000,-181.42,0.0002,2]
[422448127,1778959840000,-769.60141474,0.0002,2]
[422448130,1778959840000,-5566.69327192,0.0002,2]
[422448129,1778959840000,-15000.0,0.0002,2]
[422448075,1778959840000,-293.44,0.00019667,2]
[422448116,1778959840000,-160.972558,0.00019912,2]
[422448109,1778959840000,-151.0,0.00019912,2]
[422448120,1778959840000,-156.055678,0.00019912,2]
[422448101,1778959840000,-151.0,0.00019837,2]
[422448076,1778959840000,-1000.0,0.00019726,2]
[422448102,1778959840000,-185.916905,0.00019837,2]
[422448073,1778959840000,-151.0,0.00019178,2]
[422448077,1778959840000,-17937.30019472,0.00019837,2]
[422448079,1778959840000,-179.097696,0.00019837,2]
[422448078,1778959840000,-179.097696,0.00019837,2]
[422448081,1778959840000,-179.097696,0.00019837,2]
[422448080,1778959840000,-179.097696,0.00019837,2]
[422448085,1778959840000,-163.656556,0.00019837,2]
[422448088,1778959840000,-495.058739,0.00019837,2]
[422448086,1778959840000,-495.058739,0.00019837,2]
[422448084,1778959840000,-163.656556,0.00019837,2]
[422448083,1778959840000,-163.656556,0.00019837,2]
[422448082,1778959840000,-163.656556,0.00019837,2]
[422448087,1778959840000,-495.058739,0.00019837,2]
[422448099,1778959840000,-151.0,0.00019837,2]
[422448100,1778959840000,-185.916905,0.00019837,2]
[422448097,1778959840000,-151.0,0.00019837,2]
[422448096,1778959840000,-1997.205591,0.00019837,2]
[422448095,1778959840000,-1997.205591,0.00019837,2]
[422448094,1778959840000,-1997.205591,0.00019837,2]
[422448098,1778959840000,-151.0,0.00019837,2]
[422448092,1778959840000,-151.0,0.00019837,2]
[422448091,1778959840000,-151.0,0.00019837,2]
[422448089,1778959840000,-151.0,0.00019837,2]
[422448090,1778959840000,-495.058739,0.00019837,2]
[422448093,1778959840000,-1997.205591,0.00019837,2]
[422448174,1778959841000,-151.0,0.00020997,2]
[422448170,1778959841000,-450.0,0.00020927,2]
[422448175,1778959841000,-174.54199,0.00021,2]
[422448172,1778959841000,-450.0,0.00020927,2]
[422448171,1778959841000,-450.0,0.00020927,2]
[422448173,1778959841000,-418.0,0.00020927,2]
[422448166,1778959841000,-450.0,0.00020927,2]
[422448167,1778959841000,-450.0,0.00020927,2]
[422448168,1778959841000,-450.0,0.00020927,2]
[422448164,1778959841000,-93821.468165,0.00020905,2]
[422448165,1778959841000,-450.0,0.00020927,2]
[422448177,1778959841000,-6111.0,0.00021,2]
[422448169,1778959841000,-450.0,0.00020927,2]
[422448176,1778959841000,-15000.0,0.00021,2]
[422448188,1778959841000,-190.0,0.00021,2]
[422448180,1778959841000,-914.63696836,0.00021,2]
[422448178,1778959841000,-15000.0,0.00021,2]
[422448181,1778959841000,-189.0,0.00021,2]
[422448184,1778959841000,-582.0,0.00021,2]
[422448183,1778959841000,-451.0,0.00021,2]
[422448182,1778959841000,-164.0,0.00021,2]
[422448187,1778959841000,-619.0,0.00021,2]
[422448186,1778959841000,-157.0,0.00021,2]
[422448185,1778959841000,-152.0,0.00021,2]
[422448189,1778959841000,-151.0,0.00021,2]
[422448190,1778959841000,-326.0,0.00021,2]
[422448191,1778959841000,-475.82,0.00021001,2]
[422448192,1778959841000,-789.26,0.00021102,2]
[422448163,1778959841000,-17728.0777619,0.00020905,2]
[422448179,1778959841000,-6111.0,0.00021,2]
[422448161,1778959841000,-169.176973,0.00020905,2]
[422448132,1778959841000,-400.0,0.0002,2]
[422448160,1778959841000,-169.176981,0.00020905,2]
[422448131,1778959841000,-2000.0,0.0002,2]
[422448134,1778959841000,-156.0,0.0002,2]
[422448133,1778959841000,-189.0,0.0002,2]
[422448135,1778959841000,-451.0,0.0002,2]
[422448136,1778959841000,-582.0,0.0002,2]
[422448194,1778959841000,-157.278708,0.00021103,2]
[422448137,1778959841000,-152.0,0.0002,2]
[422448139,1778959841000,-157.0,0.0002,2]
[422448138,1778959841000,-151.0,0.0002,2]
[422448144,1778959841000,-158.0,0.0002,2]
[422448141,1778959841000,-619.0,0.0002,2]
[422448143,1778959841000,-151.0,0.0002,2]
[422448142,1778959841000,-190.0,0.0002,2]
[422448140,1778959841000,-151.0,0.0002,2]
[422448146,1778959841000,-160.81567875,0.0002,2]
[422448145,1778959841000,-326.0,0.0002,2]
[422448147,1778959841000,-194.168,0.0002,2]
[422448149,1778959841000,-2000.0,0.0002001,2]
[422448148,1778959841000,-677.86,0.0002,2]
[422448150,1778959841000,-2388.180009,0.0002002,2]
[422448152,1778959841000,-5569.57057433,0.00020427,2]
[422448151,1778959841000,-178.1,0.00020381,2]
[422448153,1778959841000,-158.79,0.00020525,2]
[422448154,1778959841000,-789.9,0.00020828,2]
[422448155,1778959841000,-43486.8265791,0.00020904,2]
[422448158,1778959841000,-169.176981,0.00020905,2]
[422448157,1778959841000,-151.0,0.00020905,2]
[422448159,1778959841000,-169.176981,0.00020905,2]
[422448156,1778959841000,-300.0,0.00020904,2]
[422448162,1778959841000,-59010.6142575,0.00020905,2]
[422448193,1778959841000,-17937.30019472,0.00021103,2]
[422448252,1778959841000,-151.0,0.000215,2]
[422448201,1778959841000,-1200.0,0.00021217,2]
[422448228,1778959841000,-1018.546225,0.000215,2]
[422448230,1778959841000,-1018.546225,0.000215,2]
[422448232,1778959841000,-179.097696,0.000215,2]
[422448236,1778959841000,-163.656556,0.000215,2]
[422448233,1778959841000,-179.097696,0.000215,2]
[422448234,1778959841000,-179.097696,0.000215,2]
[422448235,1778959841000,-163.656556,0.000215,2]
[422448241,1778959841000,-495.058739,0.000215,2]
[422448240,1778959841000,-495.058739,0.000215,2]
[422448238,1778959841000,-163.656556,0.000215,2]
[422448239,1778959841000,-495.058739,0.000215,2]
[422448237,1778959841000,-163.656556,0.000215,2]
[422448243,1778959841000,-495.058739,0.000215,2]
[422448242,1778959841000,-151.0,0.000215,2]
[422448244,1778959841000,-151.0,0.000215,2]
[422448245,1778959841000,-151.0,0.000215,2]
[422448247,1778959841000,-1997.205591,0.000215,2]
[422448246,1778959841000,-1997.205591,0.000215,2]
[422448249,1778959841000,-1997.205591,0.000215,2]
[422448253,1778959841000,-185.916905,0.000215,2]
[422448251,1778959841000,-151.0,0.000215,2]
[422448250,1778959841000,-151.0,0.000215,2]
[422448248,1778959841000,-1997.205591,0.000215,2]
[422448255,1778959841000,-185.916905,0.000215,2]
[422448256,1778959841000,-181.816587,0.000215,2]
[422448254,1778959841000,-151.0,0.000215,2]
[422448258,1778959841000,-185.916905,0.000215,2]
[422448257,1778959841000,-181.816587,0.000215,2]
[422448195,1778959841000,-475.82,0.00021106,2]
[422448229,1778959841000,-1018.546225,0.000215,2]
[422448231,1778959841000,-179.097696,0.000215,2]
[422448259,1778959841000,-181.816587,0.000215,2]
[422448227,1778959841000,-1018.546225,0.000215,2]
[422448200,1778959841000,-1200.0,0.00021217,2]
[422448196,1778959841000,-217.3,0.00021205,2]
[422448199,1778959841000,-1200.0,0.00021217,2]
[422448197,1778959841000,-475.82,0.00021211,2]
[422448198,1778959841000,-1200.0,0.00021217,2]
[422448202,1778959841000,-1200.0,0.00021217,2]
[422448203,1778959841000,-1200.0,0.00021217,2]
[422448205,1778959841000,-1200.0,0.00021217,2]
[422448224,1778959841000,-156.055678,0.000215,2]
[422448206,1778959841000,-1200.0,0.00021217,2]
[422448207,1778959841000,-993.0,0.00021217,2]
[422448208,1778959841000,-300.0,0.00021217,2]
[422448209,1778959841000,-300.0,0.00021217,2]
[422448212,1778959841000,-300.0,0.00021217,2]
[422448204,1778959841000,-1200.0,0.00021217,2]
[422448213,1778959841000,-300.0,0.00021217,2]
[422448210,1778959841000,-300.0,0.00021217,2]
[422448225,1778959841000,-156.055678,0.000215,2]
[422448223,1778959841000,-156.055678,0.000215,2]
[422448221,1778959841000,-48419.66894767,0.000215,2]
[422448222,1778959841000,-225.14220559,0.000215,2]
[422448220,1778959841000,-475.82,0.00021421,2]
[422448226,1778959841000,-156.055678,0.000215,2]
[422448218,1778959841000,-2265.56,0.00021273,2]
[422448216,1778959841000,-427.0,0.00021217,2]
[422448217,1778959841000,-923.87,0.00021273,2]
[422448214,1778959841000,-300.0,0.00021217,2]
[422448215,1778959841000,-300.0,0.00021217,2]
[422448211,1778959841000,-300.0,0.00021217,2]
[422448219,1778959841000,-475.82,0.00021316,2]
[422448303,1778959842000,-150.0,0.00022195,2]
[422448302,1778959842000,-150.0,0.00022195,2]
[422448304,1778959842000,-150.0,0.00022195,2]
[422448293,1778959842000,-157.0,0.00022,2]
[422448297,1778959842000,-151.0,0.00022,2]
[422448300,1778959842000,-243.63814301,0.0002211,2]
[422448301,1778959842000,-150.0,0.00022195,2]
[422448298,1778959842000,-326.0,0.00022,2]
[422448296,1778959842000,-190.0,0.00022,2]
[422448295,1778959842000,-619.0,0.00022,2]
[422448294,1778959842000,-151.0,0.00022,2]
[422448299,1778959842000,-475.85500783,0.00022051,2]
[422448306,1778959842000,-150.0,0.00022195,2]
[422448325,1778959842000,-250.0,0.0002268,2]
[422448308,1778959842000,-150.0,0.00022195,2]
[422448307,1778959842000,-150.0,0.00022195,2]
[422448309,1778959842000,-221.0,0.00022195,2]
[422448311,1778959842000,-5569.57057433,0.00022348,2]
[422448312,1778959842000,-178.1,0.00022353,2]
[422448310,1778959842000,-950.4443337,0.00022323,2]
[422448313,1778959842000,-17937.30019472,0.00022368,2]
[422448314,1778959842000,-1462.05,0.00022466,2]
[422448315,1778959842000,-390.10789215,0.00022603,2]
[422448317,1778959842000,-150.0,0.00022632,2]
[422448316,1778959842000,-2956.42403144,0.00022615,21]
[422448318,1778959842000,-150.0,0.00022632,2]
[422448324,1778959842000,-250.0,0.0002268,2]
[422448292,1778959842000,-151.0,0.00022,2]
[422448305,1778959842000,-150.0,0.00022195,2]
[422448291,1778959842000,-160.972558,0.00022,2]
[422448277,1778959842000,-475.82,0.00021946,2]
[422448290,1778959842000,-160.972558,0.00022,2]
[422448260,1778959842000,-185.916905,0.000215,2]
[422448261,1778959842000,-475.82,0.00021526,2]
[422448263,1778959842000,-677.86,0.000217,2]
[422448264,1778959842000,-475.82,0.00021736,2]
[422448262,1778959842000,-475.82,0.00021631,2]
[422448266,1778959842000,-475.82,0.00021841,2]
[422448265,1778959842000,-694.03874754,0.00021769,2]
[422448267,1778959842000,-399.82608225,0.000219,2]
[422448268,1778959842000,-151.0,0.00021918,2]
[422448269,1778959842000,-151.0,0.00021918,2]
[422448270,1778959842000,-151.0,0.00021918,2]
[422448271,1778959842000,-165.407147,0.00021918,2]
[422448273,1778959842000,-151.0,0.00021918,2]
[422448289,1778959842000,-160.972558,0.00022,2]
[422448272,1778959842000,-151.0,0.00021918,2]
[422448275,1778959842000,-5000.0,0.00021918,2]
[422448278,1778959842000,-119876.40162128,0.00022,4]
[422448276,1778959842000,-723.01029462,0.00021918,2]
[422448280,1778959842000,-189.0,0.00022,2]
[422448279,1778959842000,-450.0,0.00022,2]
[422448283,1778959842000,-199.938051,0.00022,2]
[422448282,1778959842000,-451.0,0.00022,2]
[422448281,1778959842000,-195.921761,0.00022,2]
[422448284,1778959842000,-582.0,0.00022,2]
[422448287,1778959842000,-151.0,0.00022,2]
[422448286,1778959842000,-152.0,0.00022,2]
[422448285,1778959842000,-151.0,0.00022,2]
[422448288,1778959842000,-160.972558,0.00022,2]
[422448274,1778959842000,-261.1828,0.00021918,2]
[422448320,1778959842000,-156.0,0.00022632,2]
[422448326,1778959842000,-250.0,0.0002268,2]
[422448319,1778959842000,-150.0,0.00022632,2]
[422448359,1778959842000,-150.0,0.0002297,4]
[422448358,1778959842000,-150.0,0.00022958,4]
[422448361,1778959842000,-150.0,0.00022979,4]
[422448360,1778959842000,-150.0,0.0002297,4]
[422448365,1778959842000,-451.0,0.00023,2]
[422448363,1778959842000,-150.0,0.00022989,4]
[422448362,1778959842000,-150.0,0.00022986,4]
[422448364,1778959842000,-189.0,0.00023,2]
[422448367,1778959842000,-152.0,0.00023,2]
[422448366,1778959842000,-582.0,0.00023,2]
[422448370,1778959842000,-190.0,0.00023,2]
[422448369,1778959842000,-619.0,0.00023,2]
[422448368,1778959842000,-158.0,0.00023,2]
[422448357,1778959842000,-150.0,0.0002294,4]
[422448372,1778959842000,-326.0,0.00023,2]
[422448374,1778959842000,-150.0,0.00023015,4]
[422448371,1778959842000,-151.0,0.00023,2]
[422448375,1778959842000,-150.0,0.00023043,4]
[422448376,1778959842000,-150.0,0.00023065,4]
[422448377,1778959842000,-150.0,0.00023071,4]
[422448379,1778959842000,-150.0,0.00023089,4]
[422448378,1778959842000,-150.0,0.00023075,4]
[422448381,1778959842000,-150.0,0.000231,4]
[422448382,1778959842000,-150.0,0.0002312,4]
[422448380,1778959842000,-150.0,0.00023096,4]
[422448383,1778959842000,-150.0,0.00023128,4]
[422448384,1778959842000,-729.0,0.00023135,2]
[422448321,1778959842000,-250.0,0.0002268,2]
[422448373,1778959842000,-150.0,0.00023012,4]
[422448354,1778959842000,-150.0,0.00022912,4]
[422448385,1778959842000,-150.0,0.00023142,4]
[422448352,1778959842000,-150.0,0.00022873,4]
[422448322,1778959842000,-250.0,0.0002268,2]
[422448327,1778959842000,-250.0,0.0002268,2]
[422448323,1778959842000,-250.0,0.0002268,2]
[422448328,1778959842000,-250.0,0.0002268,2]
[422448331,1778959842000,-150.0,0.00022759,2]
[422448330,1778959842000,-233.0,0.0002268,2]
[422448329,1778959842000,-250.0,0.0002268,2]
[422448355,1778959842000,-150.0,0.00022927,4]
[422448336,1778959842000,-150.0,0.00022759,2]
[422448334,1778959842000,-150.0,0.00022759,2]
[422448332,1778959842000,-150.0,0.00022759,2]
[422448335,1778959842000,-150.0,0.00022759,2]
[422448341,1778959842000,-202.73185857,0.00022759,2]
[422448337,1778959842000,-150.0,0.00022759,2]
[422448333,1778959842000,-150.3516787,0.00022759,2]
[422448338,1778959842000,-150.0,0.00022759,2]
[422448339,1778959842000,-150.0,0.00022759,2]
[422448353,1778959842000,-150.0,0.00022901,4]
[422448350,1778959842000,-150.0,0.00022869,4]
[422448348,1778959842000,-150.0,0.00022844,4]
[422448347,1778959842000,-150.0,0.00022843,4]
[422448346,1778959842000,-150.0,0.00022836,4]
[422448349,1778959842000,-150.0,0.00022864,4]
[422448345,1778959842000,-150.0,0.00022816,4]
[422448343,1778959842000,-150.0,0.00022759,2]
[422448344,1778959842000,-150.0,0.00022787,4]
[422448342,1778959842000,-150.0,0.00022759,2]
[422448340,1778959842000,-174.01032978,0.00022759,2]
[422448356,1778959842000,-150.0,0.00022929,4]
[422448425,1778959843000,-300.0,0.00023475,2]
[422448430,1778959843000,-150.0,0.00023498,4]
[422448426,1778959843000,-300.0,0.00023475,2]
[422448429,1778959843000,-150.0,0.00023496,4]
[422448424,1778959843000,-150.0,0.00023469,4]
[422448418,1778959843000,-150.0,0.00023391,4]
[422448421,1778959843000,-150.0,0.00023433,4]
[422448422,1778959843000,-150.0,0.00023441,4]
[422448419,1778959843000,-150.0,0.00023412,4]
[422448420,1778959843000,-150.0,0.00023419,4]
[422448416,1778959843000,-150.0,0.00023391,4]
[422448423,1778959843000,-150.0,0.00023449,4]
[422448428,1778959843000,-150.0,0.00023481,4]
[422448440,1778959843000,-2090.84568006,0.00023538,2]
[422448432,1778959843000,-1270.0,0.00023522,2]
[422448431,1778959843000,-150.0,0.00023518,4]
[422448434,1778959843000,-1223.0,0.00023522,2]
[422448433,1778959843000,-150.0,0.00023522,2]
[422448435,1778959843000,-1354.0,0.00023522,2]
[422448439,1778959843000,-150.0,0.00023529,4]
[422448437,1778959843000,-150.0,0.00023525,4]
[422448443,1778959843000,-150.0,0.00023563,2]
[422448436,1778959843000,-625.0,0.00023522,2]
[422448438,1778959843000,-150.0,0.00023526,4]
[422448441,1778959843000,-150.0,0.00023554,4]
[422448442,1778959843000,-250.0,0.00023563,2]
[422448415,1778959843000,-150.0,0.00023384,4]
[422448427,1778959843000,-404.0,0.00023475,2]
[422448417,1778959843000,-150.0,0.00023391,4]
[422448401,1778959843000,-150.0,0.00023248,2]
[422448412,1778959843000,-150.0,0.00023349,4]
[422448444,1778959843000,-150.224,0.00023563,2]
[422448386,1778959843000,-150.0,0.00023157,4]
[422448387,1778959843000,-150.0,0.0002318,4]
[422448389,1778959843000,-150.0,0.0002318,4]
[422448391,1778959843000,-150.0,0.00023199,4]
[422448390,1778959843000,-150.0,0.00023185,4]
[422448388,1778959843000,-150.0,0.0002318,4]
[422448393,1778959843000,-150.0,0.00023214,4]
[422448392,1778959843000,-677.86,0.000232,7]
[422448394,1778959843000,-150.0,0.00023219,4]
[422448395,1778959843000,-178.0,0.0002322,2]
[422448396,1778959843000,-150.0,0.00023242,4]
[422448398,1778959843000,-150.0,0.00023248,2]
[422448399,1778959843000,-150.0,0.00023248,2]
[422448402,1778959843000,-261.0,0.00023248,2]
[422448397,1778959843000,-150.0,0.00023248,2]
[422448400,1778959843000,-150.0,0.00023248,2]
[422448405,1778959843000,-150.0,0.00023286,4]
[422448403,1778959843000,-150.0,0.00023265,4]
[422448404,1778959843000,-150.0,0.0002327,4]
[422448407,1778959843000,-150.0,0.00023295,4]
[422448406,1778959843000,-390.10789215,0.00023288,2]
[422448409,1778959843000,-150.0,0.00023301,4]
[422448408,1778959843000,-150.0,0.00023299,4]
[422448411,1778959843000,-150.0,0.00023327,4]